fUST/lending_fUST_20251221
["ID","MTS","AMOUNT","RATE_DAILY","PERIOD"]
[399363765,1766316125114,-300.0,8.876e-05,2]
[399363766,1766316125143,-223.04422518,8.924e-05,2]
[399363767,1766316125173,-1785.47,8.926e-05,2]
[399363768,1766316125200,-576.31203238,9.032e-05,2]
[399363769,1766316125316,-2430.35748488,9.032e-05,2]
[399363770,1766316125347,-300.0,9.052e-05,2]
[399363771,1766316125378,-600.0,9.053e-05,2]
[399363772,1766316125406,-254.90768592,9.33e-05,2]
[399363773,1766316125435,-2678.21,9.332e-05,2]
[399363774,1766316125464,-207.76347979,9.517e-05,2]
[399363775,1766316125492,-398.29325925,9.533e-05,2]
[399363776,1766316126142,-1121.66115008,9.534e-05,2]
[399363777,1766316126201,-785.37656737,9.534e-05,2]
[399363778,1766316126368,-8429.25686526,9.534e-05,2]
[399363779,1766316126389,-10000.01,9.534e-05,2]
[399363780,1766316127886,151.0,0.00032877,31]
[399363781,1766316128205,259.213571,0.00032877,31]
[399363784,1766316141637,2874.41,0.00032877,30]
[399363785,1766316150278,-10000.01,9.534e-05,2]
[399363786,1766316150484,-10000.01,9.534e-05,2]
[399363787,1766316154193,151.0,0.00032877,31]
[399363788,1766316154520,151.0,0.00032877,31]
[399363789,1766316154815,151.0,0.00032877,31]
[399363790,1766316155113,151.0,0.00032877,31]
[399363791,1766316156033,193.692795,0.00032877,31]
[399363792,1766316162154,1000.0,0.00027742,30]
[399363793,1766316162618,1000.0,0.00027742,30]
[399363794,1766316163317,1000.0,0.00027742,30]
[399363795,1766316165145,-892.09,8.619e-05,2]
[399363796,1766316165173,-545.25614873,8.825e-05,2]
[399363797,1766316165200,-1784.19,9.03e-05,2]
[399363798,1766316165229,-880.65770254,9.44e-05,2]
[399363799,1766316165298,-1795.62229746,9.44e-05,2]
[399363806,1766316235971,823.97,8.504e-05,2]
[399363807,1766316236381,1647.94,8.909e-05,2]
[399363808,1766316237141,2471.91,9.314e-05,2]
[399363810,1766316248071,1146.16308369,9.473e-05,2]
[399363811,1766316256967,3910.02691631,9.473e-05,2]
[399363812,1766316256991,1089.97308369,9.473e-05,2]
[399363813,1766316261159,999.0,0.00032876,120]
[399363817,1766316280606,5000.0,9.473e-05,2]
[399363819,1766316298099,171.0,0.00032411,53]
[399363820,1766316298373,159.0,0.00030219,38]
[399363824,1766316304051,3910.03691631,9.473e-05,2]
[399363825,1766316304082,1089.96308369,9.473e-05,2]
[399363826,1766316309847,210.90273566,8.615e-05,2]
[399363827,1766316311917,379.62492419,8.795e-05,2]
[399363828,1766316313398,674.88875411,8.976e-05,2]
[399363829,1766316314255,773.16,8.473e-05,2]
[399363830,1766316314685,1546.31,8.876e-05,2]
[399363831,1766316315006,1054.5136783,9.156e-05,2]
[399363832,1766316315163,2319.47,9.28e-05,2]
[399363833,1766316316612,1518.49969675,9.336e-05,2]
[399363835,1766316322234,151.0,0.00032877,31]
[399363836,1766316327952,432.6771273,9.473e-05,2]
[399363837,1766316327976,4567.3228727,9.473e-05,2]
[399363839,1766316333118,151.0,0.00032877,31]
[399363840,1766316333437,296.214679,0.00032877,31]
[399363842,1766316337163,154.323394,0.00032877,31]
[399363844,1766316343838,300.0,9.473e-05,2]
[399363845,1766316344733,-2064.77996266,9.517e-05,2]
[399363846,1766316344767,-500.0,9.528e-05,2]
[399363847,1766316344796,-500.0,9.528e-05,2]
[399363848,1766316344826,-500.0,9.528e-05,2]
[399363849,1766316344855,-500.0,9.528e-05,2]
[399363850,1766316345175,-2773.56790519,9.528e-05,2]
[399363851,1766316345205,-500.0,9.528e-05,2]
[399363852,1766316345235,-500.0,9.528e-05,2]
[399363853,1766316345266,-500.0,9.528e-05,2]
[399363854,1766316345295,-574.12855637,9.528e-05,2]
[399363856,1766316355535,-5000.0,9.433e-05,2]
[399363859,1766316369746,-500.0,9.528e-05,2]
[399363860,1766316369778,-500.0,9.528e-05,2]
[399363861,1766316369808,-500.0,9.528e-05,2]
[399363862,1766316369838,-500.0,9.528e-05,2]
[399363863,1766316369868,-300.0,9.532e-05,2]
[399363864,1766316369897,-285.26222967,9.533e-05,2]
[399363865,1766316369925,-189.81493185,9.533e-05,2]
[399363866,1766316369952,-500.0,9.533e-05,2]
[399363867,1766316369981,-517.89871917,9.533e-05,2]
[399363868,1766316370009,-1200.0,9.533e-05,2]
[399363869,1766316382549,-5000.0,9.438e-05,2]
[399363870,1766316383274,2006.00032809,0.0003287,30]
[399363873,1766316392711,173.088731,0.00032877,31]
[399363874,1766316393002,173.088731,0.00032877,31]
[399363875,1766316393400,173.088731,0.00032877,31]
[399363876,1766316394010,173.088731,0.00032877,31]
[399363877,1766316394298,173.088731,0.00032877,31]
[399363878,1766316394642,173.088731,0.00032877,31]
[399363879,1766316394890,173.088731,0.00032877,31]
[399363880,1766316395181,173.088731,0.00032877,31]
[399363881,1766316395214,-199.58608623,8.48e-05,2]
[399363882,1766316395474,173.088731,0.00032877,31]
[399363883,1766316395783,173.088731,0.00032877,31]
[399363884,1766316396546,173.088731,0.00032877,31]
[399363885,1766316396579,173.088731,0.00032877,31]
[399363886,1766316396706,173.088731,0.00032877,31]
[399363887,1766316397021,173.088731,0.00032877,31]
[399363888,1766316397318,173.088731,0.00032877,31]
[399363889,1766316397623,173.088731,0.00032877,31]
[399363890,1766316397710,-178.12625704,8.48e-05,2]
[399363891,1766316397916,173.088731,0.00032877,31]
[399363892,1766316398260,173.088731,0.00032877,31]
[399363893,1766316398575,173.088731,0.00032877,31]
[399363894,1766316398897,173.088738,0.00032877,31]
[399363897,1766316404993,-5000.0,8.395e-05,2]
[399363900,1766316407862,-312.55713122,8.48e-05,2]
[399363907,1766316422339,5000.0,8.395e-05,2]
[399363909,1766316429402,524.6,0.00032876,30]
[399363912,1766316431646,151.0,0.00032877,31]
[399363913,1766316431931,151.0,0.00032877,31]
[399363914,1766316432216,151.0,0.00032877,31]
[399363915,1766316432546,162.910781,0.00032877,31]
[399363917,1766316436875,-36.85052551,8.48e-05,2]
[399363921,1766316448333,151.0,0.00032877,31]
[399363922,1766316448653,151.0,0.00032877,31]
[399363923,1766316448943,151.0,0.00032877,31]
[399363924,1766316449224,151.0,0.00032877,31]
[399363925,1766316449657,151.0,0.00032877,31]
[399363926,1766316450769,151.0,0.00032877,31]
[399363927,1766316450811,151.0,0.00032877,31]
[399363928,1766316450849,287.37259231,0.00032877,31]
[399363931,1766316454932,151.0,0.00032877,31]
[399363932,1766316455255,158.770561,0.00032877,31]
[399363933,1766316456628,-5000.0,8.795e-05,2]
[399363934,1766316456761,-1454.24,8.884e-05,2]
[399363940,1766316473523,699.36,8.543e-05,2]
[399363941,1766316474299,-1398.72,8.95e-05,2]
[399363945,1766316484052,358.802145,0.00030137,120]
[399363946,1766316484535,300.0,0.00032877,30]
[399363949,1766316490421,-2098.08,9.357e-05,2]
[399363956,1766316508265,-534.35102575,9.398e-05,2]
[399363957,1766316508725,537.7286218,0.0003287,30]
[399363962,1766316515151,151.249566,0.00032877,31]
[399363963,1766316515196,151.249566,0.00032877,31]
[399363964,1766316515237,151.249566,0.00032877,31]
[399363965,1766316515525,151.249566,0.00032877,31]
[399363966,1766316515803,151.249566,0.00032877,31]
[399363967,1766316516077,151.249566,0.00032877,31]
[399363968,1766316516384,151.249566,0.00032877,31]
[399363969,1766316516597,999.0,0.00032876,120]
[399363970,1766316516675,151.249566,0.00032877,31]
[399363971,1766316516965,151.249566,0.00032877,31]
[399363972,1766316517240,151.249566,0.00032877,31]
[399363976,1766316517518,151.249566,0.00032877,31]
[399363977,1766316517815,151.249566,0.00032877,31]
[399363978,1766316518119,151.249566,0.00032877,31]
[399363979,1766316518396,151.249566,0.00032877,31]
[399363980,1766316518825,151.249566,0.00032877,31]
[399363981,1766316519106,151.249566,0.00032877,31]
[399363982,1766316519384,151.249566,0.00032877,31]
[399363983,1766316519673,151.249566,0.00032877,31]
[399363984,1766316519964,151.249566,0.00032877,31]
[399363985,1766316520246,151.249573,0.00032877,31]
[399363986,1766316522467,151.0,0.00032877,31]
[399363987,1766316522743,151.0,0.00032877,31]
[399363988,1766316523021,151.0,0.00032877,31]
[399363989,1766316523309,158.544577,0.00032877,31]
[399363990,1766316526425,-5000.0,9.438e-05,2]
[399363996,1766316541354,0.01,9.438e-05,2]
[399363997,1766316541375,4999.99,9.438e-05,2]
[399363999,1766316547850,151.0,0.00032877,31]
[399364000,1766316547963,157.739328,0.00032877,31]
[399364002,1766316553703,664.39,8.466e-05,2]
[399364003,1766316554092,1328.79,8.87e-05,2]
[399364004,1766316554481,1993.18,9.273e-05,2]
[399364006,1766316564322,5000.0,9.463e-05,2]
[399364008,1766316573958,183.79136,0.00032877,31]
[399364010,1766316576189,151.0,0.00032877,31]
[399364011,1766316576519,243.243027,0.00032877,31]
[399364012,1766316580991,151.0,0.00032877,31]
[399364013,1766316581308,151.0,0.00032877,31]
[399364014,1766316581606,151.0,0.00032877,31]
[399364015,1766316581921,151.0,0.00032877,31]
[399364016,1766316582208,151.0,0.00032877,31]
[399364017,1766316582506,151.0,0.00032877,31]
[399364018,1766316582806,298.9793,0.00032877,31]
[399364021,1766316586667,151.0,0.00032877,31]
[399364022,1766316587023,1013.65,9.463e-05,2]
[399364023,1766316587046,3986.35,9.463e-05,2]
[399364027,1766316610710,5000.0,9.463e-05,2]
[399364029,1766316626807,197.594824,0.00032877,31]
[399364030,1766316627102,197.594824,0.00032877,31]
[399364031,1766316627521,197.594824,0.00032877,31]
[399364032,1766316627835,197.594824,0.00032877,31]
[399364033,1766316628132,197.594824,0.00032877,31]
[399364034,1766316628414,197.594824,0.00032877,31]
[399364035,1766316628527,-500.0,9.528e-05,2]
[399364036,1766316628555,-574.12855637,9.528e-05,2]
[399364037,1766316628584,-500.0,9.528e-05,2]
[399364038,1766316628612,-500.0,9.528e-05,2]
[399364039,1766316628640,-500.0,9.528e-05,2]
[399364040,1766316628971,-500.0,9.528e-05,2]
[399364041,1766316629001,-500.0,9.528e-05,2]
[399364042,1766316629030,-78.18498207,9.528e-05,2]
[399364043,1766316629223,197.594824,0.00032877,31]
[399364044,1766316629326,197.594824,0.00032877,31]
[399364045,1766316629418,197.594824,0.00032877,31]
[399364046,1766316629580,197.594824,0.00032877,31]
[399364047,1766316629867,197.594824,0.00032877,31]
[399364048,1766316630155,197.594824,0.00032877,31]
[399364049,1766316630480,197.594824,0.00032877,31]
[399364050,1766316630793,197.594824,0.00032877,31]
[399364051,1766316631087,197.594824,0.00032877,31]
[399364052,1766316631676,197.594824,0.00032877,31]
[399364053,1766316631965,197.594824,0.00032877,31]
[399364059,1766316632255,197.594824,0.00032877,31]
[399364098,1766316633023,197.594824,0.00032877,31]
[399364099,1766316633066,197.594817,0.00032877,31]
[399364108,1766316638595,-449.31152088,8.458e-05,2]
[399364284,1766316640365,-170.13847912,8.458e-05,2]
[399364285,1766316640393,-1238.9,8.861e-05,2]
[399364286,1766316640421,-1858.36,9.263e-05,2]
[399364287,1766316640535,-5000.0,9.433e-05,2]
[399364347,1766316641442,-3e-08,9.528e-05,2]
[399364450,1766316642531,151.0,0.00032877,31]
[399364483,1766316642849,151.0,0.00032877,31]
[399364564,1766316643617,151.0,0.00032877,31]
[399364576,1766316643722,-2695.38292309,9.528e-05,2]
[399364578,1766316643731,-500.0,9.528e-05,2]
[399364580,1766316643740,-500.0,9.528e-05,2]
[399364582,1766316643750,-278.33851735,9.528e-05,2]
[399364584,1766316643759,-596.0,9.533e-05,2]
[399364586,1766316643768,-300.0,9.533e-05,2]
[399364587,1766316643777,-553.0,9.533e-05,2]
[399364589,1766316643787,-4255.09705956,9.534e-05,2]
[399364718,1766316654393,45345.10569,0.00032876,30]
[399364719,1766316663504,-216.7837987,8.693e-05,2]
[399364720,1766316663533,-300.0,9.533e-05,2]
[399364726,1766316706445,174.25392336,0.00031767,30]
[399364727,1766316710529,300.0,0.00032877,30]
[399364728,1766316711684,572.15,7.892e-05,2]
[399364729,1766316713240,-1144.3,8.268e-05,2]
[399364730,1766316713271,-1716.45,8.643e-05,2]
[399364731,1766316713302,-1989.92,9.019e-05,2]
[399364738,1766316727546,-298.67,9.019e-05,2]
[399364739,1766316727577,-2860.74,9.395e-05,2]
[399364740,1766316727604,-338.18576995,9.504e-05,2]
[399364741,1766316727633,-300.0,9.533e-05,2]
[399364752,1766316766421,-1151.0434038,9.195e-05,2]
[399364757,1766316787510,7697.9231924,9.434e-05,2]
[399364758,1766316787536,10000.01,9.434e-05,2]
[399364759,1766316787560,10000.01,9.434e-05,2]
[399364760,1766316787583,10000.01,9.434e-05,2]
[399364761,1766316787606,10000.01,9.434e-05,2]
[399364762,1766316787629,10000.01,9.434e-05,2]
[399364763,1766316787652,10000.01,9.434e-05,2]
[399364764,1766316787678,10000.01,9.434e-05,2]
[399364765,1766316787702,10000.01,9.434e-05,2]
[399364767,1766316787726,10000.01,9.434e-05,2]
[399364768,1766316790682,462.92,7.861e-05,2]
[399364769,1766316792591,-925.84,8.236e-05,2]
[399364770,1766316792622,-1388.76,8.61e-05,2]
[399364771,1766316792652,-1851.68,8.984e-05,2]
[399364772,1766316792759,-2314.6,9.359e-05,2]
[399364776,1766316826120,-4890.7531109,9.434e-05,2]
[399364777,1766316826145,-10000.01,9.434e-05,2]
[399364778,1766316826568,-10000.01,9.434e-05,2]
[399364779,1766316826650,-10000.01,9.434e-05,2]
[399364780,1766316826664,-10000.01,9.434e-05,2]
[399364781,1766316826677,-10000.01,9.434e-05,2]
[399364782,1766316826747,-10000.01,9.434e-05,2]
[399364783,1766316826884,-10000.01,9.434e-05,2]
[399364784,1766316861501,-5000.0,9.339e-05,2]
[399364785,1766316861545,-300.0,9.433e-05,2]
[399364786,1766316861600,-0.01,9.434e-05,2]
[399364787,1766316861617,-9400.01,9.434e-05,2]
[399364788,1766316861711,-10000.01,9.434e-05,2]
[399364789,1766316861770,-10000.01,9.434e-05,2]
[399364790,1766316861909,-10000.01,9.434e-05,2]
[399364791,1766316862092,-10000.01,9.434e-05,2]
[399364792,1766316862267,-10000.01,9.434e-05,2]
[399364793,1766316870025,411.97,7.928e-05,2]
[399364794,1766316873191,-690.38415472,8.306e-05,2]
[399364795,1766316876047,-133.56584528,8.306e-05,2]
[399364796,1766316876073,-61.55051889,8.683e-05,2]
[399364797,1766316877525,-1137.81588629,8.683e-05,2]
[399364798,1766316879330,-36.55359482,8.683e-05,2]
[399364799,1766316879359,-1647.9,9.061e-05,2]
[399364800,1766316879408,-6631.10281036,9.434e-05,2]
[399364801,1766316879559,-1592.03080286,9.434e-05,2]
[399364802,1766316879581,-6815.94839428,9.434e-05,2]
[399364806,1766316882396,5000.0,9.434e-05,2]
[399364807,1766316894583,454.91,0.00032876,30]
[399364808,1766316896496,-2059.87,9.438e-05,2]
[399364809,1766316898734,5000.0,9.434e-05,2]
[399364810,1766316906565,880.27,9.438e-05,2]
[399364811,1766316906587,4119.73,9.438e-05,2]
[399364812,1766316907370,500.0,9.433e-05,2]
[399364813,1766316907427,500.00000001,9.433e-05,2]
[399364814,1766316916345,10000.01,9.434e-05,2]
[399364815,1766316916369,10000.01,9.434e-05,2]
[399364816,1766316916393,10000.01,9.434e-05,2]
[399364817,1766316916418,10000.01,9.434e-05,2]
[399364818,1766316932121,-5000.0,9.246e-05,2]
[399364819,1766316932313,-683.79160207,9.339e-05,2]
[399364821,1766316948360,398.75,7.88e-05,2]
[399364822,1766316953135,-797.51,8.255e-05,2]
[399364823,1766316953173,-1196.26,8.63e-05,2]
[399364824,1766316953206,-1595.02,9.005e-05,2]
[399364825,1766316953477,-5000.0,9.284e-05,2]
[399364826,1766316953650,-255.2384052,9.378e-05,2]
[399364827,1766316955716,5000.0,8.172e-05,2]
[399364828,1766316967217,-1993.77,9.381e-05,2]
[399364829,1766316978993,5000.0,9.381e-05,2]
[399364830,1766317003022,5000.0,9.413e-05,2]
[399364831,1766317013866,225.60953196,8.814e-05,2]
[399364832,1766317015272,257.83946509,9.239e-05,2]
[399364833,1766317017140,13229.71158876,0.000328,30]
[399364834,1766317025325,4516.56100295,9.413e-05,2]
[399364835,1766317025350,483.43899705,9.413e-05,2]
[399364836,1766317026616,367.57,7.874e-05,2]
[399364837,1766317027017,735.14,8.249e-05,2]
[399364838,1766317027423,1102.71,8.624e-05,2]
[399364839,1766317027826,1470.28,8.999e-05,2]
[399364841,1766317028218,1837.84,9.374e-05,2]
[399364856,1766317040212,400.0,0.00032877,30]
[399364857,1766317048366,4003.03100295,9.413e-05,2]
[399364858,1766317048388,996.96899705,9.413e-05,2]
[399364859,1766317052768,151.0,0.00032877,31]
[399364862,1766317103950,414.0,0.00032877,30]
[399364864,1766317119177,298.21,7.895e-05,2]
[399364865,1766317119572,596.41,8.271e-05,2]
[399364866,1766317123155,894.62,8.647e-05,2]
[399364867,1766317123624,1192.82,9.023e-05,2]
[399364868,1766317124100,1491.03,9.399e-05,2]
[399364875,1766317187515,150.0,9e-07,2]
[399364876,1766317188556,150.0,9e-07,2]
[399364878,1766317202693,241.28,7.831e-05,2]
[399364879,1766317203279,482.55,8.204e-05,2]
[399364880,1766317203705,723.83,8.576e-05,2]
[399364881,1766317204150,965.1,8.949e-05,2]
[399364882,1766317205403,-300.0,9.431e-05,2]
[399364883,1766317205433,-300.0,9.431e-05,2]
[399364884,1766317206166,-300.0,9.431e-05,2]
[399364885,1766317219272,-218.97048101,8.77e-05,2]
[399364886,1766317219299,-394.14686582,8.945e-05,2]
[399364887,1766317219329,-700.70553924,9.121e-05,2]
[399364888,1766317219356,-1094.85240507,9.296e-05,2]
[399364889,1766317219640,-1206.38,9.322e-05,2]
[399364890,1766317219669,-1200.0,9.431e-05,2]
[399364891,1766317219770,-552.0,9.431e-05,2]
[399364892,1766317219911,-4737.98721652,9.432e-05,2]
[399364893,1766317219925,-10000.01,9.432e-05,2]
[399364894,1766317219939,-10000.01,9.432e-05,2]
[399364895,1766317234027,-10000.01,9.432e-05,2]
[399364896,1766317234188,-10000.01,9.432e-05,2]
[399364897,1766317239530,152.0,0.000328,30]
[399364898,1766317248722,-198.1061758,8.505e-05,2]
[399364899,1766317250169,-2009.3468301,8.505e-05,2]
[399364900,1766317253675,152.0,0.000328,60]
[399364901,1766317258240,152.0,0.000328,120]
[399364903,1766317274590,154.0,0.000328,90]
[399364904,1766317283385,250.0,9.021e-05,2]
[399364905,1766317287469,209.360377,0.00032877,31]
[399364908,1766317304929,154.49114937,0.000328,45]
[399364909,1766317320586,365.06625038,9.016e-05,2]
[399364910,1766317322318,417.21857187,9.224e-05,2]
[399364911,1766317325392,4949.03151755,9.386e-05,2]
[399364912,1766317325412,10000.01,9.386e-05,2]
[399364913,1766317325432,10000.01,9.386e-05,2]
[399364914,1766317325452,9634.78803685,9.386e-05,2]
[399364915,1766317340945,220.25,7.896e-05,2]
[399364916,1766317341386,144.97196315,8.272e-05,2]
[399364917,1766317341407,295.53803685,8.272e-05,2]
[399364918,1766317342009,660.76,8.648e-05,2]
[399364919,1766317342444,881.02,9.024e-05,2]
[399364920,1766317342990,1101.27,9.4e-05,2]
[399364924,1766317408812,567.42780545,0.000328,30]
[399364925,1766317419748,500.0,0.000328,30]
[399364926,1766317421491,262.29,7.862e-05,2]
[399364927,1766317421907,524.57,8.237e-05,2]
[399364928,1766317422391,786.86,8.611e-05,2]
[399364929,1766317422801,1049.14,8.986e-05,2]
[399364930,1766317423216,1311.43,9.36e-05,2]
[399364932,1766317431339,500.0,0.000328,30]
[399364933,1766317442677,500.0,0.000328,30]
[399364934,1766317457948,500.0,0.000328,30]
[399364937,1766317468426,500.0,0.000328,30]
[399364940,1766317493816,150.0,9e-07,2]
[399364941,1766317495230,150.0,9e-07,2]
[399364942,1766317496555,150.0,9e-07,2]
[399364944,1766317498597,500.0,0.000328,30]
[399364945,1766317519874,293.69018611,8.726e-05,2]
[399364947,1766317521806,528.642335,8.85e-05,2]
[399364948,1766317523736,939.80859555,8.973e-05,2]
[399364949,1766317525047,243.39,7.861e-05,2]
[399364950,1766317525260,1468.45093055,9.097e-05,2]
[399364951,1766317525471,486.78,8.235e-05,2]
[399364952,1766317525915,730.17,8.609e-05,2]
[399364953,1766317526372,924.78795279,8.984e-05,2]
[399364954,1766317526398,48.76204721,8.984e-05,2]
[399364955,1766317526951,2114.56934,9.221e-05,2]
[399364956,1766317527137,1216.94,9.358e-05,2]
[399364957,1766317528669,2875.28566006,9.345e-05,2]
[399364959,1766317532832,160.684883,0.00032877,31]
[399364962,1766317542862,3744.45295273,9.411e-05,2]
[399364972,1766317607756,323.97,7.87e-05,2]
[399364973,1766317608183,647.94,8.245e-05,2]
[399364974,1766317608639,971.92,8.62e-05,2]
[399364975,1766317609055,1295.89,8.994e-05,2]
[399364976,1766317609455,1619.86,9.369e-05,2]
[399364980,1766317624121,193.88963609,8.834e-05,2]
[399364981,1766317626055,349.00134496,9.038e-05,2]
[399364982,1766317627196,620.44683548,9.241e-05,2]
[399364986,1766317639208,155.3916167,0.00032055,30]
[399364992,1766317678631,500.0,0.000325,120]
[399364993,1766317686699,500.0,0.000325,120]
[399364997,1766317706004,500.0,0.00032,120]
[399364998,1766317706801,169.905749,4.214e-05,2]
[399364999,1766317707006,169.905749,8.429e-05,2]
[399365000,1766317708142,304.78,7.934e-05,2]
[399365002,1766317708626,609.56,8.312e-05,2]
[399365009,1766317709187,914.33,8.69e-05,2]
[399365014,1766317709966,1219.11,9.068e-05,2]
[399365026,1766317725264,500.0,0.00032,120]
[399365031,1766317734905,500.0,0.000325,120]
[399365034,1766317745238,500.0,0.000325,120]
[399365044,1766317798198,285.87,7.91e-05,2]
[399365045,1766317798668,303.63068547,8.286e-05,2]
[399365046,1766317799017,268.10931453,8.286e-05,2]
[399365047,1766317799347,857.61,8.663e-05,2]
[399365048,1766317799825,1143.48,9.04e-05,2]
[399365072,1766317831747,-1429.35,9.416e-05,2]
[399365074,1766317831759,-278.0,9.427e-05,2]
[399365076,1766317831771,-599.99966766,9.427e-05,2]
[399365170,1766317837805,-600.00033234,9.427e-05,2]
[399365172,1766317837816,-523.66400524,9.427e-05,2]
[399365175,1766317837828,-500.0,9.428e-05,2]
[399365177,1766317837839,-241.05956925,9.428e-05,2]
[399365179,1766317837850,-500.0,9.428e-05,2]
[399365181,1766317837862,-500.0,9.428e-05,2]
[399365183,1766317837875,-135.27609317,9.428e-05,2]
[399365892,1766317884907,10000.0,0.00032877,30]
[399365894,1766317899273,300.0,9.38e-05,2]
[399365895,1766317899485,276.22,8.033e-05,2]
[399365896,1766317899887,552.43,8.416e-05,2]
[399365897,1766317900414,828.65,8.798e-05,2]
[399365898,1766317900892,1104.86,9.181e-05,2]
[399365899,1766317905658,2822.0,0.00032877,30]
[399365900,1766317935104,4668.65068547,9.334e-05,2]
[399365901,1766317935128,10000.01,9.334e-05,2]
[399365902,1766317935151,10000.01,9.334e-05,2]
[399365903,1766317935175,10000.01,9.334e-05,2]
[399365904,1766317935199,10000.01,9.334e-05,2]
[399365905,1766317935222,10000.01,9.334e-05,2]
[399365906,1766317935246,10000.01,9.334e-05,2]
[399365907,1766317935269,6563.94511195,9.334e-05,2]
[399365909,1766318019500,354.03,8.361e-05,2]
[399365910,1766318019911,708.07,8.759e-05,2]
[399365911,1766318020351,1062.1,9.157e-05,2]
[399365915,1766318084486,7875.81,9.328e-05,2]
[399365916,1766318084509,10000.01,9.328e-05,2]
[399365917,1766318084531,10000.01,9.328e-05,2]
[399365918,1766318084553,10000.01,9.328e-05,2]
[399365919,1766318084575,10000.01,9.328e-05,2]
[399365920,1766318084598,10000.01,9.328e-05,2]
[399365925,1766318102528,-333.7274594,8.351e-05,2]
[399365926,1766318118666,-9.5025406,8.351e-05,2]
[399365927,1766318118690,-231.55702865,8.55e-05,2]
[399365928,1766318120291,-248.57427326,8.55e-05,2]
[399365929,1766318132478,-5000.0,8.465e-05,2]
[399365930,1766318132622,-55.56023774,8.55e-05,2]
[399365931,1766318133623,-444.43976226,8.749e-05,2]
[399365932,1766318147883,-5000.0,8.662e-05,2]
[399365933,1766318148663,-242.02023774,8.749e-05,2]
[399365934,1766318165661,-5000.0,8.94e-05,2]
[399365935,1766318165782,-315.1805199,9.03e-05,2]
[399365936,1766318171791,2664.77681362,9.03e-05,2]
[399365937,1766318183115,330.12,8.344e-05,2]
[399365938,1766318186132,660.25,8.741e-05,2]
[399365939,1766318232630,151.51179525,0.00023521,30]
[399365940,1766318242847,5815.28730972,0.00032877,30]
[399365941,1766318258748,314.5767115,8.327e-05,2]
[399365943,1766318268065,333.75,8.336e-05,2]
[399365944,1766318268514,667.5,8.733e-05,2]
[399365949,1766318352837,337.84,8.31e-05,2]
[399365950,1766318353266,675.67,8.705e-05,2]
[399365951,1766318353702,1013.51,9.101e-05,2]
[399365952,1766318371714,5000.0,9.106e-05,2]
[399365953,1766318395577,1657.1632885,9.106e-05,2]
[399365954,1766318395602,3342.8367115,9.106e-05,2]
[399365955,1766318420576,5000.0,9.106e-05,2]
[399365956,1766318422775,1000.0,0.00027137,30]
[399365957,1766318423231,1000.0,0.00027137,30]
[399365958,1766318423717,1000.0,0.00027137,30]
[399365959,1766318428316,935.0,0.00032441,30]
[399365960,1766318428642,891.0,0.00032441,30]
[399365961,1766318435757,371.56,8.26e-05,2]
[399365962,1766318436164,743.12,8.653e-05,2]
[399365963,1766318436722,542.4932885,9.047e-05,2]
[399365964,1766318436748,572.1867115,9.047e-05,2]
[399365965,1766318439338,234.70898502,8.939e-05,2]
[399365966,1766318444292,5000.0,9.084e-05,2]
[399365967,1766318467990,4193.11430348,9.084e-05,2]
[399365968,1766318484588,4164.71352429,9.036e-05,2]
[399365969,1766318519563,441.68,8.302e-05,2]
[399365970,1766318519718,883.36,8.697e-05,2]
[399365972,1766318538087,505.4,0.0002,30]
[399365980,1766318602982,444.99,7.937e-05,2]